bitfinex-derivatives/quotes_SOLF0:USTF0_20250527
["timestamp","ask_amount","ask_price","bid_price","bid_amount"]
[1748359575868,5.6341,177.43,177.4,5.67179299]
[1748359576567,0.03884226,177.44,177.41,5.6344]
[1748359576964,0.03884226,177.44,177.4,0.03719299]
[1748359577559,9.98539984,177.44,177.4,0.03719299]
[1748359578362,5.634,177.43,177.4,0.03719299]
[1748359578559,30.32,177.42,177.4,0.03719299]
[1748359578972,35.9542,177.42,177.4,0.03719299]
[1748359579872,30.32,177.42,177.4,0.03719299]
[1748359580362,35.9541,177.42,177.4,0.03719299]
[1748359580768,30.32,177.42,177.4,0.03719299]
[1748359581067,5.6344,177.41,177.4,0.03719299]
[1748359583668,40.26655758,177.42,177.32,1.9148]
[1748359583869,40.26655758,177.42,177.35,5.6363]
[1748359584273,40.26655758,177.42,177.32,1.9148]
[1748359584674,0.03912,177.39,177.32,1.9148]
[1748359584873,0.03912,177.39,177.35,5.6361]
[1748359585068,0.03912,177.39,177.32,1.9148]
[1748359585573,0.03912,177.39,177.37,5.6356]
[1748359587174,0.03912,177.39,177.36,5.6356]
[1748359587378,0.03912,177.39,177.32,1.9148]
[1748359588375,9.98567758,177.39,177.29,30.32]
[1748359588774,5.6352,177.38,177.29,30.32]
[1748359589074,0.04299618,177.35,177.29,30.32]
[1748359589277,0.04299618,177.35,177.34,5.636]
[1748359590581,13.95095758,177.41,177.29,30.32]
[1748359590582,30.32,177.41,177.3,11.2744]
[1748359590880,30.32,177.41,177.31,9.94655758]
[1748359591182,30.32,177.41,177.4,5.6342]
[1748359591578,30.32,177.41,177.39,0.04281809]
[1748359591880,30.32,177.41,177.38,5.67057733]
[1748359592076,30.36187578,177.41,177.38,0.04278372]
[1748359592582,35.99597578,177.41,177.38,0.04278372]
[1748359594971,30.36187578,177.41,177.38,0.04278372]
[1748359595179,0.04187578,177.41,177.38,0.04278372]
[1748359595583,0.04187578,177.41,177.4,5.6342]
[1748359599087,7.578e-05,177.41,177.4,11.2742]
[1748359599284,30.4,177.5,177.4,36.04]
[1748359599478,36.03,177.54,177.4,30.4]
[1748359599681,30.4,177.54,177.51,5.6304]
[1748359599885,30.4,177.54,177.45,30.4]
[1748359600183,0.0380723,177.51,177.48,5.67331258]
[1748359600385,0.0380723,177.51,177.48,0.04181258]
[1748359601182,30.4,177.56,177.52,5.6304]
[1748359601689,30.4,177.56,177.51,5.6307]
[1748359601881,36.0294,177.56,177.45,40.34655758]
[1748359602090,36.0294,177.56,177.45,30.4]
[1748359602091,30.4,177.56,177.45,30.4]
[1748359602288,0.04027323,177.52,177.49,0.04072064]
[1748359603186,0.04027323,177.52,177.5,5.631]
[1748359603583,0.04027323,177.52,177.51,5.6307]
[1748359603982,1.9668,177.65,177.51,5.6307]
[1748359603983,5.6281,177.6,177.51,30.38]
[1748359604190,34.3199,177.63,177.54,5.6295]
[1748359604688,16.22072702,177.56,177.36,16.22072702]
[1748359604892,30.38,177.55,177.41,1.8704]
[1748359605091,0.03957373,177.48,177.44,5.67192454]
[1748359605291,0.03957373,177.48,177.44,5.66876538]
[1748359605486,0.03957373,177.48,177.44,0.03586538]
[1748359605687,5.67137373,177.48,177.44,0.03586538]
[1748359606186,0.03957373,177.48,177.44,0.03586538]
[1748359607593,5.67147373,177.48,177.44,0.03586538]
[1748359608090,0.03957373,177.48,177.44,0.03586538]
[1748359609286,0.03957373,177.48,177.44,5.66866538]
[1748359611789,5.6326,177.45,177.44,0.03586538]
[1748359611994,0.03957373,177.48,177.44,0.03586538]
[1748359612594,5.67137373,177.48,177.44,0.03586538]
[1748359612790,0.03957373,177.48,177.44,0.03586538]
[1748359613794,0.03957373,177.48,177.44,5.66876538]
[1748359615094,5.67137373,177.48,177.44,0.03586538]
[1748359615283,0.03957373,177.48,177.44,0.03586538]
[1748359615983,5.67147373,177.48,177.44,0.03586538]
[1748359617198,0.03957373,177.48,177.44,0.03586538]
[1748359617895,5.6323,177.47,177.44,0.03586538]
[1748359618095,0.03957373,177.48,177.44,0.03586538]
[1748359618493,5.67137373,177.48,177.44,0.03586538]
[1748359620395,5.632,177.47,177.44,0.03586538]
[1748359620903,0.03957373,177.48,177.45,5.6326]
[1748359621099,0.03957373,177.48,177.44,0.03586538]
[1748359621295,0.03957373,177.48,177.44,5.66876538]
[1748359622500,5.67137373,177.48,177.44,0.03586538]
[1748359623901,0.03957373,177.48,177.44,0.03586538]
[1748359625502,5.67147373,177.48,177.44,5.66876538]
[1748359626494,5.67147373,177.48,177.44,0.03586538]
[1748359626703,0.03957373,177.48,177.45,5.6326]
[1748359627102,0.03957373,177.48,177.44,0.03586538]
[1748359627405,5.67147373,177.48,177.44,5.66866538]
[1748359627602,0.03957373,177.48,177.44,0.03586538]
[1748359628499,5.6326,177.45,177.44,0.03586538]
[1748359629193,5.634,177.41,177.36,30.3]
[1748359629397,5.634,177.41,177.34,30.3]
[1748359629601,40.26571476,177.46,177.36,5.6355]
[1748359629802,5.6346,177.39,177.36,5.6355]
[1748359630001,9.96571476,177.43,177.36,5.6355]
[1748359630198,9.96571476,177.43,177.38,0.03642802]
[1748359630395,5.6344,177.4,177.38,0.03642802]
[1748359631402,5.66995471,177.41,177.38,0.03642802]
[1748359631603,0.03595471,177.41,177.38,0.03642802]
[1748359632005,0.03595471,177.41,177.4,5.6342]
[1748359632512,5.6315,177.49,177.39,30.3]
[1748359632713,5.6315,177.49,177.4,3.9507]
[1748359633008,5.6315,177.49,177.44,5.6328]
[1748359633212,5.6315,177.49,177.4,3.9507]
[1748359633407,0.03722583,177.46,177.44,5.633]
[1748359634008,0.03722583,177.46,177.43,0.04311187]
[1748359634313,0.03722583,177.46,177.43,5.67621187]
[1748359635411,0.03722583,177.46,177.44,5.6328]
[1748359635807,0.03722583,177.46,177.43,0.04311187]
[1748359636807,0.03722583,177.46,177.43,5.67611187]
[1748359637110,0.03722583,177.46,177.43,0.04311187]
[1748359637811,0.03722583,177.46,177.43,5.67641187]
[1748359638723,0.03722583,177.46,177.44,5.6329]
[1748359639214,0.03722583,177.46,177.44,5.6328]
[1748359639911,0.03722583,177.46,177.43,0.04311187]
[1748359639912,0.03722583,177.46,177.45,5.6327]
[1748359640118,30.3,177.54,177.44,30.3]
[1748359640318,30.3,177.54,177.51,5.6305]
[1748359640515,30.3,177.54,177.44,30.3]
[1748359640911,30.3,177.58,177.52,5.6303]
[1748359641116,0.0399481,177.57,177.53,0.0405289]
[1748359641324,5.6296,177.55,177.53,0.04195236]
[1748359641510,0.03605382,177.57,177.53,0.04195236]
[1748359642117,5.6294,177.56,177.53,0.04195236]
[1748359643313,5.6295,177.55,177.53,0.04195236]
[1748359643814,5.6298,177.54,177.53,0.04195236]
[1748359644514,5.6307,177.52,177.44,30.3]
[1748359644814,5.6307,177.52,177.48,5.6316]
[1748359645515,0.03698013,177.52,177.5,5.6311]
[1748359645721,0.03698013,177.52,177.48,0.04307499]
[1748359646022,0.03698013,177.52,177.5,5.6309]
[1748359646211,0.03698013,177.52,177.48,0.04307499]
[1748359646819,0.03698013,177.52,177.49,5.6312]
[1748359647018,0.03698013,177.52,177.48,0.04307499]
[1748359647425,5.6311,177.5,177.48,0.04307499]
[1748359648025,5.6308,177.51,177.48,0.04307499]
[1748359649126,5.66748013,177.52,177.48,5.67477499]
[1748359649428,0.03698013,177.52,177.48,0.04307499]
[1748359649626,5.6308,177.51,177.48,0.04307499]
[1748359650827,0.03698013,177.52,177.48,0.04307499]
[1748359653232,0.03698013,177.52,177.49,5.6312]
[1748359653427,0.03698013,177.52,177.48,0.04307499]
[1748359653837,0.03698013,177.52,177.51,5.6307]
[1748359655229,0.03698013,177.52,177.48,0.04307499]
[1748359655627,0.03698013,177.52,177.51,5.6307]
[1748359659835,0.03698013,177.52,177.48,0.04307499]
[1748359660938,0.03698013,177.52,177.51,5.6307]
[1748359661435,0.03698013,177.52,177.48,0.04307499]
[1748359662237,5.66768013,177.52,177.48,5.67467499]
[1748359662438,0.03698013,177.52,177.48,5.67467499]
[1748359663034,0.03698013,177.52,177.49,5.6314]
[1748359663339,0.03698013,177.52,177.48,0.04307499]
[1748359664430,0.03698013,177.52,177.49,5.6311]
[1748359664638,0.03698013,177.52,177.48,0.04307499]
[1748359664937,5.66758013,177.52,177.49,5.6311]
[1748359666436,0.03698013,177.52,177.51,5.6308]
[1748359672036,0.03698013,177.52,177.48,0.04307499]
[1748359672638,5.6309,177.51,177.48,0.04307499]
[1748359673342,0.03698013,177.52,177.48,0.04307499]
[1748359674740,9.96276211,177.5,177.42,30.28]
[1748359675544,9.96276211,177.5,177.43,5.6331]
[1748359675545,5.6322,177.47,177.43,5.6331]
[1748359675737,5.6322,177.47,177.44,0.03565896]
[1748359675932,0.03918397,177.48,177.44,0.03565896]
[1748359676948,9.96612679,177.47,177.44,0.03565896]
[1748359677240,15.59822679,177.47,177.44,5.66855896]
[1748359677845,9.96612679,177.47,177.44,0.03565896]
[1748359678244,5.6324,177.46,177.44,0.03565896]
[1748359678846,0.03918397,177.48,177.44,0.03565896]
[1748359679334,0.03918397,177.48,177.47,5.632]
[1748359683443,0.03918397,177.48,177.47,35.912]
[1748359685945,8.397e-05,177.48,177.47,35.912]
[1748359686142,3.8331,177.56,177.47,35.912]
[1748359686143,30.28,177.63,177.48,11.2634]
[1748359686346,2.49641895,177.62,177.5,9.96612679]
[1748359686552,2.48966413,177.61,177.51,1.8557]
[1748359686747,2.48966413,177.6,177.52,30.28]
[1748359686948,2.48830196,177.59,177.52,30.28]
[1748359687151,0.04226869,177.57,177.54,0.03660878]
[1748359687348,5.6281,177.6,177.57,5.6289]
[1748359687549,2.48839665,177.59,177.54,0.03660878]
[1748359687749,2.48839665,177.58,177.57,5.6289]
[1748359688145,0.04147332,177.6,177.54,0.03660878]
[1748359688348,4.97408679,177.59,177.54,0.03660878]
[1748359688549,2.48704375,177.59,177.54,0.03660878]
[1748359688745,2.48704171,177.58,177.54,0.03660878]
[1748359688945,2.48704028,177.57,177.54,0.03660878]
[1748359689250,42.71317054,177.59,177.54,0.03660878]
[1748359689445,5.6295,177.55,177.54,0.03660878]
[1748359689649,8.11687609,177.55,177.54,0.03660878]
[1748359689850,2.48737609,177.55,177.48,30.26]
[1748359690052,2.48765438,177.54,177.48,5.6318]
[1748359690250,2.48758604,177.53,177.45,1.9592]
[1748359690452,2.48758604,177.52,177.45,1.9592]
[1748359690752,5.6315,177.49,177.47,0.04037453]
[1748359690953,10.00683269,177.5,177.47,0.04037453]
[1748359690954,2.48758604,177.48,177.47,0.04037453]
[1748359691256,2.48758604,177.48,177.4,30.26]
[1748359691257,5.6327,177.46,177.4,30.26]
[1748359691651,32.2582,177.49,177.4,30.26]
[1748359691849,5.6323,177.47,177.43,5.6331]
[1748359692056,2.48748737,177.46,177.43,5.67134132]
[1748359692259,0.03553448,177.47,177.43,5.67134132]
[1748359692552,5.66763448,177.47,177.43,5.67134132]
[1748359692958,2.48713854,177.46,177.43,5.67134132]
[1748359693258,0.03553448,177.47,177.43,0.03824132]
[1748359693456,2.48710597,177.46,177.43,0.03824132]
[1748359693655,0.03553448,177.47,177.43,0.03824132]
[1748359694155,2.4870059,177.46,177.43,0.03824132]
[1748359694364,5.66783448,177.47,177.43,5.67154132]
[1748359694554,0.03553448,177.47,177.43,0.03824132]
[1748359695361,30.26,177.46,177.43,0.03824132]
[1748359695565,32.74726175,177.46,177.43,0.03824132]
[1748359695857,30.26,177.46,177.43,0.03824132]
[1748359696154,5.633,177.44,177.43,0.03824132]
[1748359696761,0.03553448,177.47,177.43,0.03824132]
[1748359696966,2.48710948,177.46,177.43,0.03824132]
[1748359697162,0.03553448,177.47,177.43,0.03824132]
[1748359697559,2.48636735,177.46,177.43,0.03824132]
[1748359697857,0.03553448,177.47,177.46,5.6324]
[1748359700561,3.448e-05,177.47,177.46,5.6324]
[1748359710070,32.74704375,177.59,177.47,11.2642]
[1748359710667,2.48207113,177.57,177.47,11.2642]
[1748359710967,32.74704375,177.59,177.47,11.2642]
[1748359711269,0.03885855,177.54,177.53,5.6302]
[1748359711477,0.03885855,177.54,177.52,0.03949789]
[1748359711768,0.03885855,177.54,177.51,0.03703477]
[1748359712274,0.03885855,177.54,177.53,5.6302]
[1748359714870,5.855e-05,177.54,177.53,5.6302]
[1748359721873,30.22,177.67,177.52,3.8253]
[1748359722174,30.22,177.67,177.53,16.24230609]
[1748359722571,30.22,177.67,177.54,11.2597]
[1748359722878,0.03659388,177.62,177.59,0.03917587]
[1748359723269,0.03659388,177.62,177.61,5.6275]
[1748359723769,0.03659388,177.62,177.59,0.03917587]
[1748359724367,0.03659388,177.62,177.6,5.6277]
[1748359725172,0.03659388,177.62,177.59,0.03917587]
[1748359725978,5.6279,177.61,177.59,0.03917587]
[1748359726183,0.03659388,177.62,177.59,0.03917587]
[1748359726374,30.23659388,177.62,177.59,0.03917587]
[1748359726576,4.0218,177.61,177.59,0.03917587]
[1748359726773,13.96872972,177.61,177.51,68.92630334]
[1748359726975,13.96872972,177.61,177.51,30.2]
[1748359727375,5.6288,177.58,177.55,5.6295]
[1748359727574,5.6288,177.58,177.51,30.2]
[1748359727777,0.0386976,177.56,177.54,5.6297]
[1748359729484,0.0386976,177.56,177.55,5.6295]
[1748359729670,9.76e-05,177.56,177.55,5.6295]
[1748359733187,32.2179,177.66,177.54,116.3984]
[1748359733781,2.0179,177.66,177.54,116.3984]
[1748359733977,46.42309321,177.71,177.58,0.04220722]
[1748359733978,4.24e-05,177.62,177.58,0.04220722]
[1748359734182,30.2,177.71,177.59,30.2]
[1748359734381,30.2,177.71,177.6,1.9833]
[1748359734781,30.2,177.71,177.61,3.9054]
[1748359734979,11.5067,177.74,177.7,5.6247]
[1748359735187,5.92552721,177.74,177.7,0.03952485]
[1748359735477,2.41210136,177.73,177.71,5.6244]
[1748359735678,3.93762721,177.74,177.71,5.6244]
[1748359735874,2.41206015,177.73,177.71,5.6244]
[1748359736073,3.93762721,177.74,177.7,5.66432485]
[1748359736280,2.42282434,177.73,177.7,0.03952485]
[1748359736485,3.93762721,177.74,177.7,0.03952485]
[1748359736778,3.93762721,177.74,177.7,5.66432485]
[1748359736981,2.42289363,177.73,177.7,0.03952485]
[1748359737184,2.104e-05,177.74,177.7,0.03952485]
[1748359737381,30.2,177.87,177.71,16.22309321]
[1748359737579,30.2,177.87,177.72,114.2111]
[1748359737782,5.6198,177.86,177.72,114.2111]
[1748359738377,0.03615672,177.81,177.79,5.6217]
[1748359738591,0.03615672,177.81,177.78,0.03847778]
[1748359739091,0.03615672,177.81,177.78,5.66047778]
[1748359739287,0.03615672,177.81,177.78,0.03847778]
[1748359741482,0.03615672,177.81,177.78,30.23847778]
[1748359741681,5.672e-05,177.81,177.8,5.6216]
[1748359744092,5.672e-05,177.81,177.8,35.8016]
[1748359745596,5.672e-05,177.81,177.8,30.18]
[1748359745791,5.672e-05,177.81,177.78,0.03847778]
[1748359747188,5.672e-05,177.81,177.79,5.6217]
[1748359747596,5.672e-05,177.81,177.8,5.6216]
[1748359747798,5.672e-05,177.81,177.78,0.03847778]
[1748359748301,5.672e-05,177.81,177.8,5.6216]
[1748359749193,5.672e-05,177.81,177.78,0.03847778]
[1748359749601,5.672e-05,177.81,177.8,5.6216]
[1748359750595,5.672e-05,177.81,177.79,5.6219]
[1748359750991,5.672e-05,177.81,177.78,0.03847778]
[1748359751201,5.672e-05,177.81,177.78,5.66067778]
[1748359751705,5.62145672,177.81,177.78,5.66067778]
[1748359751890,5.672e-05,177.81,177.78,0.03847778]
[1748359752190,5.6219,177.79,177.78,0.03847778]
[1748359752399,5.8401,177.8,177.73,5.6236]
[1748359752603,5.8401,177.8,177.71,30.14]
[1748359752999,5.6225,177.78,177.74,5.6233]
[1748359753306,0.0393857,177.78,177.74,0.04177877]
[1748359753502,0.0393857,177.78,177.77,5.6226]
[1748359754103,0.0393857,177.78,177.76,5.6228]
[1748359754300,0.0393857,177.78,177.74,0.04177877]
[1748359754800,5.6617857,177.78,177.74,5.66507877]
[1748359755009,0.0393857,177.78,177.74,5.66507877]
[1748359755214,0.0393857,177.78,177.74,0.04177877]
[1748359755504,5.6229,177.77,177.74,0.04177877]
[1748359756097,5.6231,177.76,177.74,0.04177877]
[1748359756295,0.0393857,177.78,177.74,0.04177877]
[1748359756705,5.6616857,177.78,177.75,5.623]
[1748359757205,5.6616857,177.78,177.76,5.6229]
[1748359757400,0.0393857,177.78,177.76,5.6229]
[1748359759206,0.0393857,177.78,177.77,5.6226]
[1748359762305,8.57e-05,177.78,177.77,5.6226]
[1748359770813,8.57e-05,177.78,177.74,0.04177877]
[1748359773217,8.57e-05,177.78,177.77,5.6226]
[1748359777519,8.57e-05,177.78,177.74,0.04177877]
[1748359778326,8.57e-05,177.78,177.76,5.6227]
[1748359779023,8.57e-05,177.78,177.77,5.6226]
[1748359784322,30.1,177.88,177.86,5.6195]
[1748359784520,30.1,177.88,177.8,30.1]
[1748359784921,30.1,177.88,177.85,5.62]
[1748359785119,35.7192,177.88,177.8,30.1]
[1748359785326,0.0375379,177.86,177.85,5.6198]
[1748359794839,0.0375379,177.86,177.82,0.0393721]
[1748359795652,5.6201,177.85,177.82,0.0393721]
[1748359796132,30.1175379,177.86,177.82,0.0393721]
[1748359796336,30.1175379,177.86,177.83,5.6205]
[1748359796834,35.7375379,177.86,177.83,5.6205]
[1748359797041,30.1175379,177.86,177.82,5.6601721]
[1748359797732,5.6203,177.85,177.82,5.6601721]
[1748359798634,5.6203,177.85,177.83,5.6206]
[1748359799545,35.7373379,177.86,177.83,5.6206]
[1748359800340,30.1175379,177.86,177.82,5.6603721]
[1748359800741,35.7374379,177.86,177.83,5.6205]
[1748359801139,30.1175379,177.86,177.82,0.0393721]
[1748359801447,30.1175379,177.86,177.82,5.6601721]
[1748359801743,30.1175379,177.86,177.82,0.0393721]
[1748359801941,5.6207,177.83,177.82,0.0393721]
[1748359803041,5.6205,177.84,177.82,0.0393721]
[1748359803541,5.6207,177.83,177.82,0.0393721]
[1748359803845,3.8167,177.85,177.82,0.0393721]
[1748359804047,5.6206,177.84,177.82,0.0393721]
[1748359804237,3.8167,177.85,177.82,0.0393721]
[1748359804846,9.437,177.85,177.82,5.6601721]
[1748359805145,3.8167,177.85,177.82,0.0393721]
[1748359805342,0.0375379,177.86,177.82,0.0393721]
[1748359806039,0.0375379,177.86,177.85,5.6201]
[1748359806833,0.0375379,177.86,177.82,0.0393721]
[1748359807335,0.0375379,177.86,177.85,5.6201]
[1748359809348,3.79e-05,177.86,177.85,5.6201]
[1748359814543,3.79e-05,177.86,177.83,114.0483]
[1748359815240,3.79e-05,177.86,177.85,5.6201]
[1748359816343,3.79e-05,177.86,177.85,35.6401]
[1748359816544,3.79e-05,177.86,177.75,8.45690913]
[1748359816740,39.94233647,177.88,177.75,8.45690913]
[1748359816741,9.92233647,177.82,177.75,8.45690913]
[1748359817143,9.92233647,177.82,177.76,4.22652663]
[1748359817350,9.92233647,177.82,177.75,9.8535825]
[1748359817544,5.6225,177.78,177.77,0.04039211]
[1748359818161,5.6229,177.76,177.75,4.2303825]
[1748359818544,9.92233647,177.78,177.66,5.9405]
[1748359818745,9.92233647,177.78,177.71,5.6245]
[1748359818949,39.94233647,177.78,177.71,5.6245]
[1748359819244,5.66364621,177.76,177.73,0.03874391]
[1748359819955,0.04064621,177.76,177.73,0.03874391]
[1748359820357,5.66374621,177.76,177.73,0.03874391]
[1748359822551,0.04064621,177.76,177.73,0.03874391]
[1748359823747,5.66374621,177.76,177.73,0.03874391]
[1748359824156,0.04064621,177.76,177.73,0.03874391]
[1748359824649,9.92233647,177.75,177.73,0.03874391]
[1748359824954,5.6246,177.71,177.68,5.6252]
[1748359825153,5.6246,177.71,177.65,493.0530039]
[1748359825154,9.92233647,177.72,177.65,7.4130039]
[1748359825348,9.92233647,177.69,177.65,7.4130039]
[1748359825942,15.58558895,177.69,177.65,13.0815806]
[1748359826254,0.03795248,177.69,177.65,7.4554806]
[1748359827153,0.03795248,177.69,177.68,5.6254]
[1748359828957,0.03795248,177.69,177.67,5.6256]
[1748359829251,9.96028895,177.69,177.65,7.4554806]
[1748359829759,5.6257,177.68,177.65,7.4554806]
[1748359830150,0.03795248,177.69,177.65,7.4554806]
[1748359832462,5.626,177.67,177.65,7.4554806]
[1748359833252,5.6261,177.66,177.65,7.4554806]
[1748359833459,4.01065248,177.69,177.65,7.4554806]
[1748359833960,5.6258,177.67,177.65,7.4554806]
[1748359834354,5.6261,177.66,177.65,7.4554806]
[1748359835064,30.06,177.66,177.61,10.80763905]
[1748359835264,30.06,177.66,177.61,5.18003905]
[1748359835662,5.6269,177.64,177.61,5.18003905]
[1748359835855,30.06,177.66,177.61,5.18003905]
[1748359836171,0.04035914,177.65,177.62,5.66931558]
[1748359836555,0.04035914,177.65,177.62,0.04201558]
[1748359836962,0.04035914,177.65,177.59,6.90671874]
[1748359836963,16.24653884,177.65,177.59,6.90671874]
[1748359837465,5.628,177.6,177.59,6.90671874]
[1748359837664,30.06,177.61,177.59,6.90671874]
[1748359838667,0.0409479,177.62,177.59,6.90671874]
[1748359839057,0.0409479,177.62,177.61,5.6276]
[1748359839770,30.02,177.69,177.67,5.6256]
[1748359839971,30.02,177.69,177.6,1.8736]
[1748359840769,0.04134607,177.66,177.63,0.04155831]
[1748359841470,0.04134607,177.66,177.65,5.6264]
[1748359843269,0.04134607,177.66,177.64,5.6266]
[1748359843480,0.04134607,177.66,177.63,0.04155831]
[1748359843671,0.04134607,177.66,177.65,5.6264]
[1748359843872,0.04134607,177.66,177.63,0.04155831]
[1748359844568,0.04134607,177.66,177.65,5.6264]
[1748359848591,0.04134607,177.66,177.63,0.04155831]
[1748359849195,30.02,177.65,177.63,0.04155831]
[1748359849497,5.6267,177.64,177.63,0.04155831]
[1748359849884,30.02,177.65,177.63,0.04155831]
[1748359850789,35.6466,177.65,177.63,0.04155831]
[1748359851982,30.02,177.65,177.63,0.04155831]
[1748359852691,35.6464,177.65,177.63,0.04155831]
[1748359853096,30.02,177.65,177.63,0.04155831]
[1748359853395,30.02,177.65,177.64,5.6267]
[1748359853596,30.02,177.65,177.63,0.04155831]
[1748359853995,30.02,177.65,177.63,5.66835831]
[1748359854491,5.66744607,177.66,177.63,5.66835831]
[1748359854696,0.04134607,177.66,177.64,5.6264]
[1748359854998,0.04134607,177.66,177.63,0.04155831]
[1748359856097,0.04134607,177.66,177.64,5.6265]
[1748359856493,0.04134607,177.66,177.63,0.04155831]
[1748359856705,5.66764607,177.66,177.63,5.66855831]
[1748359857098,0.04134607,177.66,177.63,5.66855831]
[1748359858296,0.04134607,177.66,177.64,5.6266]
[1748359858895,0.04134607,177.66,177.63,5.66845831]
[1748359859494,0.04134607,177.66,177.64,5.6267]
[1748359859697,0.04134607,177.66,177.63,0.04155831]
[1748359860501,0.04134607,177.66,177.65,5.6264]
[1748359863698,9.94250425,177.73,177.63,0.04155831]
[1748359863898,30.02,177.74,177.63,0.04155831]
[1748359864095,30.02,177.74,177.62,13.2233]
[1748359864494,5.624,177.73,177.7,5.6246]
[1748359864798,0.03971259,177.73,177.7,0.04192446]
[1748359865300,5.66381259,177.73,177.7,5.66662446]
[1748359865799,0.03971259,177.73,177.71,5.6243]
[1748359866000,0.03971259,177.73,177.7,0.04192446]
[1748359866301,0.03971259,177.73,177.7,5.66652446]
[1748359866302,5.66381259,177.73,177.7,5.66652446]
[1748359866692,0.03971259,177.73,177.7,0.04192446]
[1748359867499,0.03971259,177.73,177.71,5.6245]
[1748359868499,0.03971259,177.73,177.72,5.6242]
[1748359872107,29.98,177.78,177.7,30.00192446]
[1748359872409,29.96,177.82,177.71,1.9904]
[1748359872608,5.621,177.82,177.71,1.9904]
[1748359872803,5.621,177.82,177.78,5.6221]
[1748359872998,15.56330425,177.83,177.71,1.9904]
[1748359873198,0.0385884,177.79,177.78,5.6223]
[1748359875512,0.0385884,177.79,177.77,5.66371225]
[1748359875709,0.0385884,177.79,177.77,0.04121225]
[1748359876215,0.0385884,177.79,177.77,5.66371225]
[1748359876507,0.0385884,177.79,177.77,0.04121225]
[1748359878705,5.6223,177.78,177.77,0.04121225]
[1748359880209,5.6605884,177.79,177.77,0.04121225]
[1748359880405,0.0385884,177.79,177.77,0.04121225]
[1748359881215,0.0385884,177.79,177.78,5.6223]
[1748359881517,8.84e-05,177.79,177.78,5.6223]
[1748359881719,8.84e-05,177.79,177.78,11.2423]
[1748359882014,8.82329318,177.94,177.84,9.94250425]
[1748359882015,6.96249318,177.94,177.84,9.94250425]
[1748359882214,6.96249318,177.94,177.85,29.96]
[1748359882414,6.96249318,177.94,177.93,5.6175]
[1748359883420,0.03811129,177.95,177.94,5.6172]
[1748359886014,1.129e-05,177.95,177.94,5.6172]
[1748359892113,1.129e-05,177.95,177.93,5.6175]
[1748359892318,1.129e-05,177.95,177.92,0.03875617]
[1748359892719,1.129e-05,177.95,177.94,5.6172]
[1748359896228,3.8156,178.02,178.01,5.615]
[1748359896528,1.8608,178.06,177.97,29.92]
[1748359896729,3.8401,178.05,178.02,5.6146]
[1748359896929,29.94,178.09,177.97,29.92]
[1748359897230,0.04028347,178.05,178.01,0.03853721]
[1748359898132,0.04028347,178.05,178.02,5.6144]
[1748359898520,5.65428347,178.05,178.01,0.03853721]
[1748359898723,0.04028347,178.05,178.01,0.03853721]
[1748359899132,5.6142,178.04,178.01,0.03853721]
[1748359899331,0.04028347,178.05,178.01,0.03853721]
[1748359899627,5.6141,178.04,178.01,0.03853721]
[1748359899826,0.04028347,178.05,178.01,0.03853721]
[1748359900030,29.92,178.04,178.01,0.03853721]
[1748359901228,0.04028347,178.05,178.01,0.03853721]
[1748359902534,0.04028347,178.05,178.04,5.6141]
[1748359904826,0.04028347,178.05,178.03,5.6143]
[1748359905026,0.04028347,178.05,178.01,0.03853721]
[1748359905233,0.04028347,178.05,178.02,5.6144]
[1748359905443,0.04028347,178.05,178.01,0.03853721]
[1748359905931,0.04028347,178.05,178.04,5.6141]
[1748359910140,0.04028347,178.05,178.01,0.03853721]
[1748359910141,21.80065716,178.05,178.01,0.03853721]
[1748359910438,46.02037369,178.04,177.92,29.88]
[1748359911341,5.6156,177.99,177.96,0.03912815]
[1748359912044,5.65848704,178.0,177.96,0.03912815]
[1748359912241,0.04308704,178.0,177.96,0.03912815]
[1748359912537,29.90308704,178.0,177.96,0.03912815]
[1748359912736,5.6162,177.98,177.96,0.03912815]
[1748359912937,29.90308704,178.0,177.96,0.03912815]
[1748359913133,46.04346073,178.0,177.88,29.86]
[1748359913333,46.00037369,178.0,177.88,29.86]
[1748359913533,46.00037369,178.0,177.91,5.6179]
[1748359913837,46.00037369,178.0,177.88,29.86]
[1748359914036,46.00037369,178.0,177.91,5.6181]
[1748359914341,0.03811429,177.96,177.92,0.03569047]
[1748359916144,5.6171,177.95,177.92,0.03569047]
[1748359916341,0.03811429,177.96,177.92,0.03569047]
[1748359916637,29.91811429,177.96,177.92,0.03569047]
[1748359917238,29.91811429,177.96,177.94,5.617]